fUST/lending_fUST_20250206
["ID","MTS","AMOUNT","RATE_DAILY","PERIOD"]
[351913139,1738839040854,-500.0,0.00013698,2]
[351913140,1738839040863,-1917.16,0.00013698,2]
[351913141,1738839040872,-500.0,0.00013698,2]
[351913142,1738839040882,-870.22,0.00013698,2]
[351913143,1738839040892,-500.0,0.00013698,2]
[351913144,1738839040901,-886.01,0.00013698,2]
[351913145,1738839040911,-500.0,0.00013698,2]
[351913146,1738839040920,-500.0,0.00013698,2]
[351913147,1738839040930,-619.78,0.00013698,2]
[351913148,1738839040942,-1742.89,0.00013698,2]
[351913149,1738839040951,-500.0,0.00013698,2]
[351913150,1738839040960,-1425.57,0.00013698,2]
[351913151,1738839040969,-9592.94,0.00013698,2]
[351913152,1738839040979,-500.0,0.00013698,2]
[351913153,1738839040989,-500.0,0.00013698,2]
[351913154,1738839040998,-503.41528639,0.00013698,2]
[351913155,1738839041007,-500.0,0.00013698,2]
[351913156,1738839041017,-500.0,0.00013698,2]
[351913157,1738839041028,-500.0,0.00013698,2]
[351913158,1738839041038,-500.0,0.00013698,2]
[351913159,1738839041047,-567.41,0.00013698,2]
[351913160,1738839041057,-500.0,0.00013698,2]
[351913161,1738839041067,-706.9,0.00013698,2]
[351913162,1738839041077,-512.8579241,0.00013698,2]
[351913163,1738839041086,-500.0,0.00013698,2]
[351913164,1738839041095,-14729.27,0.00013698,2]
[351913165,1738839041105,-3340.79,0.00013698,2]
[351913166,1738839041115,-500.0,0.00013698,2]
[351913167,1738839041124,-1206.81,0.00013698,2]
[351913168,1738839041134,-500.0,0.00013698,2]
[351913169,1738839041143,-500.0,0.00013698,2]
[351913170,1738839041152,-2283.75,0.00013698,2]
[351913171,1738839041162,-500.0,0.00013698,2]
[351913172,1738839041171,-3339.14,0.00013698,2]
[351913173,1738839041180,-1407.63,0.00013698,2]
[351913174,1738839041191,-500.0,0.00013698,2]
[351913175,1738839041201,-872.060371,0.00013699,2]
[351913176,1738839041210,-293.422389,0.00013699,2]
[351913177,1738839041220,-500.0,0.00013699,2]
[351913178,1738839041230,-500.0,0.00013699,2]
[351913179,1738839041239,-500.0,0.00013699,2]
[351913180,1738839041249,-500.0,0.00013699,2]
[351913181,1738839041258,-500.0,0.00013699,2]
[351913182,1738839041268,-500.0,0.00013699,2]
[351913183,1738839041277,-500.0,0.00013699,2]
[351913184,1738839041287,-500.0,0.00013699,2]
[351913185,1738839041297,-500.0,0.00013699,2]
[351913186,1738839041307,-348.54799312,0.00013699,2]
[351913187,1738839041317,-500.0,0.00013699,2]
[351913188,1738839041327,-500.0,0.00013699,2]
[351913189,1738839041336,-500.0,0.00013699,2]
[351913190,1738839041346,-500.0,0.00013699,2]
[351913191,1738839041355,-500.0,0.00013699,2]
[351913192,1738839041364,-500.0,0.00013699,2]
[351913193,1738839041373,-500.0,0.00013699,2]
[351913194,1738839041383,-500.0,0.00013699,2]
[351913195,1738839041392,-500.0,0.00013699,2]
[351913196,1738839041401,-500.0,0.00013699,2]
[351913197,1738839041413,-500.0,0.00013699,2]
[351913198,1738839041423,-646.79983321,0.00013699,2]
[351913199,1738839041432,-646.79983321,0.00013699,2]
[351913200,1738839041445,-646.79983321,0.00013699,2]
[351913201,1738839041455,-646.79983321,0.00013699,2]
[351913202,1738839041465,-646.79983321,0.00013699,2]
[351913203,1738839041474,-646.79983321,0.00013699,2]
[351913204,1738839041483,-646.79983321,0.00013699,2]
[351913205,1738839041492,-646.79983321,0.00013699,2]
[351913206,1738839041502,-646.79983321,0.00013699,2]
[351913207,1738839041511,-646.79983321,0.00013699,2]
[351913208,1738839041521,-646.79983321,0.00013699,2]
[351913209,1738839041531,-646.79983321,0.00013699,2]
[351913210,1738839041540,-646.79983321,0.00013699,2]
[351913211,1738839041549,-646.79983321,0.00013699,2]
[351913212,1738839041559,-646.79983321,0.00013699,2]
[351913213,1738839041568,-646.79983321,0.00013699,2]
[351913214,1738839041578,-646.79983321,0.00013699,2]
[351913215,1738839041587,-646.79983321,0.00013699,2]
[351913216,1738839041597,-646.79983321,0.00013699,2]
[351913217,1738839041606,-646.79983321,0.00013699,2]
[351913218,1738839041616,-646.79983321,0.00013699,2]
[351913219,1738839041625,-646.79983321,0.00013699,2]
[351913220,1738839041635,-646.79983321,0.00013699,2]
[351913221,1738839041644,-646.79983321,0.00013699,2]
[351913222,1738839041655,-646.79983321,0.00013699,2]
[351913223,1738839041665,-646.79983321,0.00013699,2]
[351913224,1738839041675,-646.79983321,0.00013699,2]
[351913225,1738839041687,-646.79983321,0.00013699,2]
[351913226,1738839041696,-646.79983321,0.00013699,2]
[351913227,1738839041705,-646.79983321,0.00013699,2]
[351913228,1738839041715,-646.79983321,0.00013699,2]
[351913229,1738839041725,-646.79983321,0.00013699,2]
[351913230,1738839041734,-646.79983321,0.00013699,2]
[351913231,1738839041743,-646.79983321,0.00013699,2]
[351913232,1738839041753,-646.79983321,0.00013699,2]
[351913233,1738839041763,-646.79983321,0.00013699,2]
[351913234,1738839041772,-646.79983321,0.00013699,2]
[351913235,1738839041782,-646.79983321,0.00013699,2]
[351913236,1738839041791,-646.79983321,0.00013699,2]
[351913237,1738839041801,-646.79983321,0.00013699,2]
[351913238,1738839041811,-646.79983321,0.00013699,2]
[351913239,1738839041821,-646.79983321,0.00013699,2]
[351913240,1738839041831,-646.79983321,0.00013699,2]
[351913241,1738839041841,-646.79983321,0.00013699,2]
[351913242,1738839041852,-646.79983321,0.00013699,2]
[351913243,1738839041862,-646.79983321,0.00013699,2]
[351913244,1738839041872,-646.79983321,0.00013699,2]
[351913245,1738839041882,-646.79983321,0.00013699,2]
[351913246,1738839041892,-646.79983321,0.00013699,2]
[351913247,1738839041902,-646.79983321,0.00013699,2]
[351913248,1738839041912,-646.79983321,0.00013699,2]
[351913249,1738839041922,-646.79983321,0.00013699,2]
[351913250,1738839041932,-646.79983321,0.00013699,2]
[351913251,1738839041944,-656.50183071,0.00013699,2]
[351913252,1738839041954,-656.50183071,0.00013699,2]
[351913253,1738839041963,-656.50183071,0.00013699,2]
[351913254,1738839041973,-656.50183071,0.00013699,2]
[351913255,1738839041985,-656.50183071,0.00013699,2]
[351913256,1738839041996,-656.50183071,0.00013699,2]
[351913257,1738839042007,-656.50183071,0.00013699,2]
[351913258,1738839042017,-656.50183071,0.00013699,2]
[351913259,1738839042027,-656.50183071,0.00013699,2]
[351913260,1738839042036,-656.50183071,0.00013699,2]
[351913261,1738839042046,-656.50183071,0.00013699,2]
[351913262,1738839042056,-656.50183071,0.00013699,2]
[351913263,1738839042066,-656.50183071,0.00013699,2]
[351913264,1738839042076,-656.50183071,0.00013699,2]
[351913265,1738839042085,-656.50183071,0.00013699,2]
[351913266,1738839042096,-656.50183071,0.00013699,2]
[351913267,1738839042105,-656.50183071,0.00013699,2]
[351913268,1738839042115,-656.50183071,0.00013699,2]
[351913269,1738839042125,-656.50183071,0.00013699,2]
[351913270,1738839042136,-656.50183071,0.00013699,2]
[351913271,1738839042146,-500.0,0.00013834,2]
[351913272,1738839042325,-500.0,0.00013834,2]
[351913273,1738839042337,-527.74248413,0.00013834,2]
[351913274,1738839042347,-500.0,0.00013834,2]
[351913275,1738839042357,-566.3012782,0.00013834,2]
[351913276,1738839042367,-500.000001,0.00013834,2]
[351913277,1738839042376,-500.0,0.00013835,2]
[351913278,1738839042386,-500.0,0.00013835,2]
[351913279,1738839042396,-312.50620919,0.00013835,2]
[351913280,1738839042406,-500.0,0.00013835,2]
[351913281,1738839042417,-500.0,0.00013835,2]
[351913282,1738839042429,-500.0,0.00013835,2]
[351913283,1738839042442,-500.0,0.00013835,2]
[351913284,1738839042452,-975.31,0.00013835,2]
[351913285,1738839042462,-500.0,0.00013835,2]
[351913286,1738839042472,-624.4,0.00013835,2]
[351913287,1738839042483,-1676.92,0.00013835,2]
[351913288,1738839042493,-528.35,0.00013835,2]
[351913289,1738839042503,-735.5,0.00013835,2]
[351913290,1738839042514,-500.0,0.00013835,2]
[351913291,1738839042523,-500.0,0.00013835,2]
[351913292,1738839042532,-500.0,0.00013835,2]
[351913293,1738839042541,-500.0,0.00013835,2]
[351913294,1738839042551,-500.0,0.00013835,2]
[351913295,1738839042561,-675.16,0.00013835,2]
[351913296,1738839042571,-500.0,0.00013835,2]
[351913297,1738839042581,-500.0,0.00013835,2]
[351913299,1738839042591,-723.69,0.00013835,2]
[351913301,1738839042602,-1233.84,0.00013835,2]
[351913302,1738839042613,-500.0,0.00013835,2]
[351913303,1738839042622,-527.56,0.00013835,2]
[351913305,1738839042633,-1291.65,0.00013835,2]
[351913306,1738839042643,-500.0,0.00013835,2]
[351913307,1738839042652,-500.0,0.00013835,2]
[351913308,1738839042662,-643.62,0.00013835,2]
[351913309,1738839042672,-500.0,0.00013835,2]
[351913310,1738839042681,-500.0,0.00013835,2]
[351913312,1738839042692,-500.0,0.00013835,2]
[351913314,1738839042702,-825.6,0.00013835,2]
[351913316,1738839042711,-1164.11,0.00013835,2]
[351913318,1738839042723,-500.0,0.00013835,2]
[351913320,1738839042733,-500.0,0.00013835,2]
[351913322,1738839042743,-500.0,0.00013835,2]
[351913324,1738839042756,-500.0,0.00013835,2]
[351913326,1738839042766,-500.0,0.00013835,2]
[351913328,1738839042776,-500.0,0.00013835,2]
[351913330,1738839042786,-646.91,0.00013835,2]
[351913332,1738839042797,-180.26221922,0.00013835,2]
[351913334,1738839042809,-1063.82659665,0.00013835,2]
[351913337,1738839042819,-500.0,0.00013835,2]
[351913340,1738839042830,-500.0,0.00013835,2]
[351913342,1738839042846,-500.0,0.00013835,2]
[351913344,1738839042857,-500.0,0.00013835,2]
[351913346,1738839042866,-1304.49,0.00013835,2]
[351913348,1738839042875,-665.48,0.00013835,2]
[351913350,1738839042886,-500.0,0.00013835,2]
[351913352,1738839042896,-500.0,0.00013835,2]
[351913354,1738839042906,-500.0,0.00013835,2]
[351913356,1738839042916,-500.0,0.00013835,2]
[351913358,1738839042925,-1602.25,0.00013835,2]
[351913359,1738839042935,-500.0,0.00013835,2]
[351913361,1738839042946,-500.0,0.00013835,2]
[351913363,1738839042956,-500.0,0.00013835,2]
[351913365,1738839042965,-500.0,0.00013835,2]
[351913367,1738839042975,-500.0,0.00013835,2]
[351913368,1738839042984,-500.0,0.00013835,2]
[351913370,1738839042994,-500.0,0.00013835,2]
[351913372,1738839043003,-500.0,0.00013835,2]
[351913374,1738839043012,-203.19450892,0.00013835,2]
[351913375,1738839043022,-691.48,0.00013835,2]
[351913376,1738839043032,-1215.81,0.00013835,2]
[351913377,1738839043043,-500.0,0.00013835,2]
[351913378,1738839043053,-641.21,0.00013835,2]
[351913379,1738839043062,-500.0,0.00013835,2]
[351913380,1738839043072,-500.0,0.00013835,2]
[351913381,1738839043082,-500.0,0.00013835,2]
[351913382,1738839043092,-330.0769895,0.00013835,2]
[351913384,1738839043101,-578.73,0.00013835,2]
[351913386,1738839043110,-424.86869562,0.00013835,2]
[351913388,1738839043119,-500.0,0.00013835,2]
[351913390,1738839043129,-500.0,0.00013835,2]
[351913392,1738839043139,-3576.0,0.00013835,2]
[351913394,1738839043149,-705.64,0.00013835,2]
[351913397,1738839043159,-1030.99,0.00013835,2]
[351913399,1738839043168,-500.0,0.00013835,2]
[351913400,1738839043178,-8540.71,0.00013835,2]
[351913402,1738839043190,-500.0,0.00013835,2]
[351913405,1738839043200,-500.0,0.00013835,2]
[351913407,1738839043210,-500.0,0.00013835,2]
[351913409,1738839043220,-518.63325424,0.00013835,2]
[351913410,1738839043229,-500.0,0.00013835,2]
[351913412,1738839043238,-862.01,0.00013835,2]
[351913415,1738839043248,-636.61,0.00013835,2]
[351913417,1738839043257,-500.0,0.00013835,2]
[351913419,1738839043266,-500.0,0.00013835,2]
[351913420,1738839043276,-500.0,0.00013835,2]
[351913422,1738839043286,-500.0,0.00013835,2]
[351913424,1738839043295,-500.0,0.00013835,2]
[351913427,1738839043305,-1595.17,0.00013835,2]
[351913429,1738839043315,-500.0,0.00013835,2]
[351913431,1738839043326,-500.0,0.00013835,2]
[351913433,1738839043335,-1247.5,0.00013835,2]
[351913435,1738839043345,-500.0,0.00013835,2]
[351913437,1738839043355,-4569.08,0.00013835,2]
[351913439,1738839043364,-500.0,0.00013835,2]
[351913441,1738839043374,-1258.02,0.00013835,2]
[351913443,1738839043384,-500.0,0.00013835,2]
[351913444,1738839043393,-500.0,0.00013835,2]
[351913446,1738839043404,-500.0,0.00013835,2]
[351913448,1738839043418,-2423.02,0.00013835,2]
[351913450,1738839043429,-1358.68,0.00013835,2]
[351913452,1738839043443,-500.0,0.00013835,2]
[351913454,1738839043454,-2077.19,0.00013835,2]
[351913456,1738839043465,-28453.55,0.00013835,2]
[351913459,1738839043475,-6256.19,0.00013835,2]
[351913462,1738839043484,-16738.85,0.00013835,2]
[351913465,1738839043494,-500.0,0.00013835,2]
[351913467,1738839043504,-500.0,0.00013835,2]
[351913469,1738839043514,-500.0,0.00013835,2]
[351913471,1738839043525,-500.0,0.00013835,2]
[351913473,1738839043534,-2428.01,0.00013835,2]
[351913475,1738839043544,-492.9554816,0.00013835,2]
[351913477,1738839043554,-1662.89,0.00013835,2]
[351913479,1738839043564,-500.0,0.00013835,2]
[351913481,1738839043574,-500.0,0.00013835,2]
[351913483,1738839043584,-1519.04,0.00013835,2]
[351913485,1738839043594,-1479.2,0.00013835,2]
[351913487,1738839043604,-798.79,0.00013835,2]
[351913489,1738839043614,-2284.29,0.00013835,2]
[351913491,1738839043623,-1419.49,0.00013835,2]
[351913493,1738839043632,-500.0,0.00013835,2]
[351913495,1738839043642,-1386.64,0.00013835,2]
[351913497,1738839043651,-500.0,0.00013835,2]
[351913499,1738839043661,-500.0,0.00013835,2]
[351913501,1738839043670,-500.0,0.00013835,2]
[351913503,1738839043680,-827.09,0.00013835,2]
[351913504,1738839043691,-500.0,0.00013835,2]
[351913506,1738839043700,-500.0,0.00013835,2]
[351913508,1738839043710,-500.0,0.00013835,2]
[351913510,1738839043719,-696.94,0.00013835,2]
[351913512,1738839043729,-500.0,0.00013835,2]
[351913514,1738839043738,-500.0,0.00013835,2]
[351913516,1738839043748,-500.0,0.00013835,2]
[351913518,1738839043759,-500.0,0.00013835,2]
[351913520,1738839043768,-500.0,0.00013835,2]
[351913522,1738839043777,-500.0,0.00013835,2]
[351913524,1738839043789,-500.0,0.00013835,2]
[351913526,1738839043799,-500.0,0.00013835,2]
[351913528,1738839043808,-500.0,0.00013835,2]
[351913530,1738839043818,-650.14,0.00013835,2]
[351913532,1738839043827,-500.0,0.00013835,2]
[351913534,1738839043837,-840.33,0.00013835,2]
[351913536,1738839043847,-780.34,0.00013835,2]
[351913538,1738839043856,-3599.89,0.00013835,2]
[351913540,1738839043866,-500.0,0.00013835,2]
[351913542,1738839043876,-500.0,0.00013835,2]
[351913544,1738839043885,-517.54206974,0.00013835,2]
[351913546,1738839043895,-845.49,0.00013835,2]
[351913548,1738839043904,-3363.64,0.00013835,2]
[351913550,1738839043914,-500.0,0.00013835,2]
[351913552,1738839043924,-500.0,0.00013835,2]
[351913554,1738839043933,-500.0,0.00013835,2]
[351913556,1738839043944,-1655.67,0.00013835,2]
[351913558,1738839043953,-3668.98,0.00013835,2]
[351913560,1738839043962,-1917.16,0.00013835,2]
[351913562,1738839043972,-500.0,0.00013835,2]
[351913564,1738839043982,-870.22,0.00013835,2]
[351913566,1738839043991,-500.0,0.00013835,2]
[351913568,1738839044001,-886.01,0.00013835,2]
[351913570,1738839044010,-500.0,0.00013835,2]
[351913572,1738839044019,-619.78,0.00013835,2]
[351913574,1738839044029,-1742.89,0.00013835,2]
[351913576,1738839044038,-500.0,0.00013835,2]
[351913578,1738839044048,-1425.57,0.00013835,2]
[351913580,1738839044058,-9592.94,0.00013835,2]
[351913582,1738839044067,-500.0,0.00013835,2]
[351913584,1738839044077,-500.0,0.00013835,2]
[351913586,1738839044087,-500.0,0.00013835,2]
[351913588,1738839044097,-500.0,0.00013835,2]
[351913590,1738839044106,-500.0,0.00013835,2]
[351913592,1738839044116,-567.41,0.00013835,2]
[351913594,1738839044125,-500.0,0.00013835,2]
[351913596,1738839044135,-706.9,0.00013835,2]
[351913598,1738839044144,-14729.27,0.00013835,2]
[351913600,1738839044154,-500.0,0.00013835,2]
[351913602,1738839044163,-3340.79,0.00013835,2]
[351913604,1738839044174,-1206.81,0.00013835,2]
[351913606,1738839044183,-500.0,0.00013835,2]
[351913608,1738839044194,-500.0,0.00013835,2]
[351913610,1738839044203,-2283.75,0.00013835,2]
[351913611,1738839044213,-500.0,0.00013835,2]
[351913612,1738839044223,-3339.14,0.00013835,2]
[351913613,1738839044234,-1407.63,0.00013835,2]
[351913614,1738839044243,-500.0,0.00013835,2]
[351913615,1738839044253,-3000.0,0.00013872,2]
[351913616,1738839044262,-500.0,0.00013873,2]
[351913617,1738839044273,-278.99472816,0.00013972,2]
[351913618,1738839044282,-642.70682113,0.00013972,2]
[351913619,1738839044292,-500.0,0.00013972,2]
[351913620,1738839044301,-500.0,0.00013972,2]
[351913621,1738839044311,-500.0,0.00013972,2]
[351913622,1738839044321,-975.31,0.00013972,2]
[351913623,1738839044330,-500.0,0.00013972,2]
[351913624,1738839044340,-624.4,0.00013972,2]
[351913625,1738839044350,-1676.92,0.00013972,2]
[351913626,1738839044359,-528.35,0.00013972,2]
[351913627,1738839044368,-735.5,0.00013972,2]
[351913628,1738839044378,-500.0,0.00013972,2]
[351913629,1738839044388,-500.0,0.00013972,2]
[351913630,1738839044398,-500.0,0.00013972,2]
[351913631,1738839044407,-500.0,0.00013972,2]
[351913632,1738839044422,-500.0,0.00013972,2]
[351913633,1738839044434,-675.16,0.00013972,2]
[351913634,1738839044447,-500.0,0.00013972,2]
[351913635,1738839044457,-500.0,0.00013972,2]
[351913636,1738839044468,-723.69,0.00013972,2]
[351913637,1738839044477,-1233.84,0.00013972,2]
[351913638,1738839044488,-500.0,0.00013972,2]
[351913639,1738839044497,-1291.65,0.00013972,2]
[351913640,1738839044507,-500.0,0.00013972,2]
[351913641,1738839044517,-643.62,0.00013972,2]
[351913642,1738839044527,-500.0,0.00013972,2]
[351913643,1738839044537,-500.0,0.00013972,2]
[351913644,1738839044547,-825.6,0.00013972,2]
[351913645,1738839044557,-1164.11,0.00013972,2]
[351913646,1738839044566,-500.0,0.00013972,2]
[351913647,1738839044575,-500.0,0.00013972,2]
[351913648,1738839044584,-500.0,0.00013972,2]
[351913649,1738839044593,-500.0,0.00013972,2]
[351913650,1738839044602,-500.0,0.00013972,2]
[351913651,1738839044611,-500.0,0.00013972,2]
[351913652,1738839044621,-646.91,0.00013972,2]
[351913653,1738839044630,-501.51961899,0.00013972,2]
[351913654,1738839044639,-500.0,0.00013972,2]
[351913655,1738839044648,-500.0,0.00013972,2]
[351913656,1738839044657,-500.0,0.00013972,2]
[351913657,1738839044666,-1304.49,0.00013972,2]
[351913658,1738839044676,-665.48,0.00013972,2]
[351913659,1738839044685,-500.0,0.00013972,2]
[351913660,1738839044694,-500.0,0.00013972,2]
[351913661,1738839044703,-500.0,0.00013972,2]
[351913662,1738839044713,-1602.25,0.00013972,2]
[351913663,1738839044760,-500.0,0.00013972,2]
[351913664,1738839044770,-500.0,0.00013972,2]
[351913665,1738839044779,-500.0,0.00013972,2]
[351913666,1738839044788,-500.0,0.00013972,2]
[351913667,1738839044798,-691.48,0.00013972,2]
[351913668,1738839044807,-1215.81,0.00013972,2]
[351913669,1738839044816,-500.0,0.00013972,2]
[351913670,1738839044827,-641.21,0.00013972,2]
[351913671,1738839044837,-500.0,0.00013972,2]
[351913672,1738839044846,-500.0,0.00013972,2]
[351913673,1738839044855,-500.0,0.00013972,2]
[351913674,1738839044864,-578.73,0.00013972,2]
[351913675,1738839044875,-500.0,0.00013972,2]
[351913676,1738839044884,-3576.0,0.00013972,2]
[351913677,1738839044893,-705.64,0.00013972,2]
[351913678,1738839044903,-1030.99,0.00013972,2]
[351913679,1738839044913,-500.0,0.00013972,2]
[351913680,1738839044922,-8540.71,0.00013972,2]
[351913681,1738839044932,-500.0,0.00013972,2]
[351913682,1738839044943,-500.0,0.00013972,2]
[351913683,1738839044953,-500.0,0.00013972,2]
[351913684,1738839044962,-862.01,0.00013972,2]
[351913685,1738839044971,-500.0,0.00013972,2]
[351913686,1738839044980,-469.8873639,0.00013972,2]
[351913687,1738839044989,-500.0,0.00013972,2]
[351913688,1738839044999,-500.0,0.00013972,2]
[351913689,1738839045008,-1595.17,0.00013972,2]
[351913690,1738839045018,-500.0,0.00013972,2]
[351913691,1738839045028,-1247.5,0.00013972,2]
[351913692,1738839045037,-505.06596654,0.00013972,2]
[351913693,1738839045048,-4569.08,0.00013972,2]
[351913694,1738839045059,-1258.02,0.00013972,2]
[351913695,1738839045068,-500.0,0.00013972,2]
[351913696,1738839045078,-500.0,0.00013972,2]
[351913697,1738839045088,-616.8449243,0.00013972,2]
[351913698,1738839045097,-2423.02,0.00013972,2]
[351913699,1738839045107,-1358.68,0.00013972,2]
[351913700,1738839045116,-500.0,0.00013972,2]
[351913701,1738839045126,-2077.19,0.00013972,2]
[351913702,1738839045136,-28453.55,0.00013972,2]
[351913703,1738839045145,-6256.19,0.00013972,2]
[351913704,1738839045155,-16738.85,0.00013972,2]
[351913705,1738839045164,-500.0,0.00013972,2]
[351913706,1738839045173,-508.09432037,0.00013972,2]
[351913707,1738839045182,-500.0,0.00013972,2]
[351913708,1738839045192,-2428.01,0.00013972,2]
[351913709,1738839045201,-1662.89,0.00013972,2]
[351913710,1738839045211,-500.0,0.00013972,2]
[351913711,1738839045220,-500.0,0.00013972,2]
[351913712,1738839045229,-1519.04,0.00013972,2]
[351913713,1738839045238,-1479.2,0.00013972,2]
[351913714,1738839045247,-798.79,0.00013972,2]
[351913715,1738839045256,-2284.29,0.00013972,2]
[351913716,1738839045266,-185.5204664,0.00013972,2]
[351913717,1738839045276,-1419.49,0.00013972,2]
[351913718,1738839045285,-1386.64,0.00013972,2]
[351913719,1738839045295,-500.0,0.00013972,2]
[351913720,1738839045304,-500.0,0.00013972,2]
[351913721,1738839045313,-500.0,0.00013972,2]
[351913722,1738839045322,-827.09,0.00013972,2]
[351913723,1738839045331,-500.0,0.00013972,2]
[351913724,1738839045341,-500.0,0.00013972,2]
[351913725,1738839045351,-500.0,0.00013972,2]
[351913726,1738839045360,-696.94,0.00013972,2]
[351913727,1738839045370,-500.0,0.00013972,2]
[351913728,1738839045379,-500.0,0.00013972,2]
[351913729,1738839045388,-500.0,0.00013972,2]
[351913730,1738839045397,-500.0,0.00013972,2]
[351913731,1738839045406,-500.0,0.00013972,2]
[351913732,1738839045419,-500.0,0.00013972,2]
[351913733,1738839045428,-500.0,0.00013972,2]
[351913734,1738839045440,-500.0,0.00013972,2]
[351913735,1738839045450,-650.14,0.00013972,2]
[351913736,1738839045461,-500.0,0.00013972,2]
[351913737,1738839045470,-840.33,0.00013972,2]
[351913738,1738839045480,-780.34,0.00013972,2]
[351913739,1738839045489,-3599.89,0.00013972,2]
[351913740,1738839045499,-500.0,0.00013972,2]
[351913741,1738839045510,-500.0,0.00013972,2]
[351913742,1738839045519,-845.49,0.00013972,2]
[351913743,1738839045529,-3363.64,0.00013972,2]
[351913744,1738839045538,-500.0,0.00013972,2]
[351913745,1738839045547,-500.0,0.00013972,2]
[351913746,1738839045556,-1655.67,0.00013972,2]
[351913747,1738839045565,-3668.98,0.00013972,2]
[351913748,1738839045574,-1917.16,0.00013972,2]
[351913749,1738839045583,-500.0,0.00013972,2]
[351913750,1738839045592,-870.22,0.00013972,2]
[351913751,1738839045601,-500.0,0.00013972,2]
[351913752,1738839045610,-886.01,0.00013972,2]
[351913753,1738839045619,-500.0,0.00013972,2]
[351913754,1738839045628,-619.78,0.00013972,2]
[351913755,1738839045638,-1742.89,0.00013972,2]
[351913756,1738839045648,-1425.57,0.00013972,2]
[351913757,1738839045657,-9592.94,0.00013972,2]
[351913758,1738839045667,-634.02193502,0.00013972,2]
[351913759,1738839045677,-500.0,0.00013972,2]
[351913760,1738839045686,-500.0,0.00013972,2]
[351913761,1738839045695,-500.0,0.00013972,2]
[351913762,1738839045705,-567.41,0.00013972,2]
[351913763,1738839045714,-706.9,0.00013972,2]
[351913764,1738839045723,-14729.27,0.00013972,2]
[351913765,1738839045733,-500.0,0.00013972,2]
[351913766,1738839045742,-3340.79,0.00013972,2]
[351913767,1738839045752,-1206.81,0.00013972,2]
[351913768,1738839045761,-570.88527049,0.00013972,2]
[351913769,1738839045771,-2283.75,0.00013972,2]
[351913770,1738839045781,-500.0,0.00013972,2]
[351913771,1738839045790,-3339.14,0.00013972,2]
[351913772,1738839045799,-1407.63,0.00013972,2]
[351913773,1738839045808,-500.0,0.00013972,2]
[351913774,1738839045817,-400.0,0.00013973,2]
[351913775,1738839045827,-733.0,0.000141,5]
[351913776,1738839045836,-500.0,0.00014109,2]
[351913777,1738839045846,-500.0,0.00014109,2]
[351913778,1738839045855,-500.0,0.00014109,2]
[351913779,1738839045865,-975.31,0.00014109,2]
[351913780,1738839045875,-601.07962728,0.00014109,2]
[351913781,1738839045884,-624.4,0.00014109,2]
[351913782,1738839045893,-1676.92,0.00014109,2]
[351913783,1738839045902,-528.35,0.00014109,2]
[351913784,1738839045912,-735.5,0.00014109,2]
[351913785,1738839045922,-500.0,0.00014109,2]
[351913786,1738839045931,-500.0,0.00014109,2]
[351913788,1738839045941,-290.35269199,0.00014109,2]
[351913790,1738839045950,-500.0,0.00014109,2]